[Event "Late-Titled-Tuesday-Blitz-July-09-2024"]
[Site "Chess.com"]
[Date "2024.07.09"]
[Round "1"]
[White "Walter_White_Poland"]
[Black "OriTaichman"]
[Result "1-0"]
[WhiteElo "2419"]
[BlackElo "2715"]
[TimeControl "180+1"]
[EndTime "14:02:09 PDT"]
[Termination "Walter_White_Poland won by resignation"]

1. e4 {[%clk 0:03:00.9]} 1... c5 {[%clk 0:02:51.3]} 2. Nf3 {[%clk 0:02:58.6]}
2... Nc6 {[%clk 0:02:41]} 3. d4 {[%clk 0:02:58]} 3... cxd4 {[%clk 0:02:41.9]} 4.
Nxd4 {[%clk 0:02:58.1]} 4... d5 {[%clk 0:02:42.3]} 5. exd5 {[%clk 0:02:56.2]}
5... Qxd5 {[%clk 0:02:42.1]} 6. Be3 {[%clk 0:02:56.4]} 6... e6 {[%clk
0:02:37.5]} 7. Nc3 {[%clk 0:02:35.8]} 7... Bb4 {[%clk 0:02:34.5]} 8. Qd2 {[%clk
0:02:35.4]} 8... Qa5 {[%clk 0:02:33.2]} 9. a3 {[%clk 0:02:27.3]} 9... Nf6 {[%clk
0:02:30.3]} 10. Nb3 {[%clk 0:02:26.5]} 10... Bxc3 {[%clk 0:02:26.7]} 11. Nxa5
{[%clk 0:02:21.9]} 11... Bxd2+ {[%clk 0:02:26.1]} 12. Bxd2 {[%clk 0:02:22.1]}
12... Nxa5 {[%clk 0:02:25.5]} 13. Bxa5 {[%clk 0:02:21.9]} 13... b6 {[%clk
0:02:24.8]} 14. Bb4 {[%clk 0:02:15.3]} 14... Bb7 {[%clk 0:02:22.3]} 15. O-O-O
{[%clk 0:02:14.3]} 15... a5 {[%clk 0:02:21.4]} 16. Bb5+ {[%clk 0:02:13.5]} 1-0

[Event "Late-Titled-Tuesday-Blitz-July-09-2024"]
[Site "Chess.com"]
[Date "2024.07.09"]
[Round "1"]
[White "BaylavChess"]
[Black "Ykow"]
[Result "0-1"]
[WhiteElo "2405"]
[BlackElo "2734"]
[TimeControl "180+1"]
[EndTime "14:02:31 PDT"]
[Termination "Ykow won by resignation"]

1. d4 {[%clk 0:02:58.8]} 1... d5 {[%clk 0:02:51.6]} 2. c4 {[%clk 0:02:58.6]}
2... e5 {[%clk 0:02:50.4]} 3. dxe5 {[%clk 0:02:52.9]} 3... d4 {[%clk 0:02:51.3]}
4. Nf3 {[%clk 0:02:46.9]} 4... Nc6 {[%clk 0:02:50.5]} 5. a3 {[%clk 0:02:44.9]}
5... Nge7 {[%clk 0:02:46.3]} 6. e3 {[%clk 0:02:45]} 6... Bg4 {[%clk 0:02:44.6]}
7. exd4 {[%clk 0:02:24.3]} 7... Bxf3 {[%clk 0:02:44.2]} 8. Qxf3 {[%clk
0:02:24.2]} 8... Qxd4 {[%clk 0:02:44.6]} 9. Qe3 {[%clk 0:02:02.5]} 9... Nf5
{[%clk 0:02:42.2]} 10. Qxd4 {[%clk 0:01:42.1]} 10... Nfxd4 {[%clk 0:02:43.1]}
11. Bd3 {[%clk 0:01:40.9]} 11... Nb3 {[%clk 0:02:39]} 12. Nd2 {[%clk 0:01:30.9]}
12... Nxa1 {[%clk 0:02:38.5]} 13. b3 {[%clk 0:01:31.1]} 13... O-O-O {[%clk
0:02:37.9]} 14. Ke2 {[%clk 0:01:31.1]} 14... Nd4+ {[%clk 0:02:37.2]} 0-1

[Event "Late-Titled-Tuesday-Blitz-July-09-2024"]
[Site "Chess.com"]
[Date "2024.07.09"]
[Round "1"]
[White "yaguigor"]
[Black "LidongW"]
[Result "1-0"]
[WhiteElo "2620"]
[BlackElo "2285"]
[TimeControl "180+1"]
[EndTime "14:02:59 PDT"]
[Termination "yaguigor won by resignation"]

1. Nf3 {[%clk 0:02:57.5]} 1... Nf6 {[%clk 0:02:57.6]} 2. c4 {[%clk 0:02:56.2]}
2... g6 {[%clk 0:02:57.3]} 3. Nc3 {[%clk 0:02:54.4]} 3... Bg7 {[%clk 0:02:52.6]}
4. e4 {[%clk 0:02:53.9]} 4... d6 {[%clk 0:02:53.1]} 5. d4 {[%clk 0:02:53.9]}
5... O-O {[%clk 0:02:52.7]} 6. Be2 {[%clk 0:02:54.5]} 6... e5 {[%clk 0:02:51.6]}
7. O-O {[%clk 0:02:54]} 7... Nc6 {[%clk 0:02:50.1]} 8. d5 {[%clk 0:02:52.9]}
8... Ne7 {[%clk 0:02:50.6]} 9. b4 {[%clk 0:02:52.5]} 9... Nd7 {[%clk 0:02:35.8]}
10. a4 {[%clk 0:02:46.4]} 10... a5 {[%clk 0:02:34]} 11. bxa5 {[%clk 0:02:44.7]}
11... h6 {[%clk 0:02:31.8]} 12. Nd2 {[%clk 0:02:38.4]} 12... Nc5 {[%clk
0:02:13.5]} 13. Nb3 {[%clk 0:02:32]} 13... Nxb3 {[%clk 0:02:11.2]} 14. Qxb3
{[%clk 0:02:32.9]} 14... Rxa5 {[%clk 0:02:11.8]} 15. Ba3 {[%clk 0:02:29.4]}
15... b6 {[%clk 0:02:10.8]} 16. Bb4 {[%clk 0:02:29.3]} 16... Ra8 {[%clk
0:02:10.7]} 17. a5 {[%clk 0:02:29.6]} 17... f5 {[%clk 0:02:00.2]} 18. f3 {[%clk
0:02:25.1]} 18... f4 {[%clk 0:01:58.9]} 19. axb6 {[%clk 0:02:23]} 19... Rxa1
{[%clk 0:01:58.5]} 20. Rxa1 {[%clk 0:02:23.9]} 20... cxb6 {[%clk 0:01:59]} 21.
Nb5 {[%clk 0:02:22.6]} 21... Nc6 {[%clk 0:01:36.2]} 1-0

[Event "Late-Titled-Tuesday-Blitz-July-09-2024"]
[Site "Chess.com"]
[Date "2024.07.09"]
[Round "1"]
[White "CoachKevinVelazquez"]
[Black "koncheto"]
[Result "0-1"]
[WhiteElo "2342"]
[BlackElo "2668"]
[TimeControl "180+1"]
[EndTime "14:03:51 PDT"]
[Termination "koncheto won by checkmate"]

1. e4 {[%clk 0:03:00.9]} 1... c5 {[%clk 0:02:59.7]} 2. Nf3 {[%clk 0:03:01.1]}
2... d6 {[%clk 0:02:59.8]} 3. d4 {[%clk 0:03:01.6]} 3... cxd4 {[%clk 0:03:00.7]}
4. Nxd4 {[%clk 0:03:02.1]} 4... Nf6 {[%clk 0:03:01.3]} 5. Nc3 {[%clk 0:03:02.8]}
5... Nc6 {[%clk 0:03:01.8]} 6. Bg5 {[%clk 0:03:03]} 6... e6 {[%clk 0:03:02.3]}
7. Qd2 {[%clk 0:03:01]} 7... a6 {[%clk 0:03:01.8]} 8. O-O-O {[%clk 0:03:00.8]}
8... Bd7 {[%clk 0:03:00.8]} 9. f4 {[%clk 0:03:00.1]} 9... b5 {[%clk 0:02:58.9]}
10. a3 {[%clk 0:02:53.1]} 10... Rc8 {[%clk 0:02:54.7]} 11. g4 {[%clk 0:02:48.2]}
11... Be7 {[%clk 0:02:33.6]} 12. Bxf6 {[%clk 0:02:29.8]} 12... Bxf6 {[%clk
0:02:32.4]} 13. Nce2 {[%clk 0:02:30.5]} 13... Qb6 {[%clk 0:02:26.9]} 14. e5
{[%clk 0:01:30.7]} 14... dxe5 {[%clk 0:02:02.7]} 15. Nf3 {[%clk 0:01:31]} 15...
Qc7 {[%clk 0:01:51.8]} 16. g5 {[%clk 0:01:30.4]} 16... Be7 {[%clk 0:01:50.1]}
17. fxe5 {[%clk 0:01:26.7]} 17... Nxe5 {[%clk 0:01:43.2]} 18. Nxe5 {[%clk
0:01:26.4]} 18... Bxg5 {[%clk 0:01:43.4]} 19. Nxd7 {[%clk 0:01:15.2]} 19...
Qxc2# {[%clk 0:01:42.2]} 0-1

[Event "Late-Titled-Tuesday-Blitz-July-09-2024"]
[Site "Chess.com"]
[Date "2024.07.09"]
[Round "1"]
[White "ElDivis"]
[Black "ElCoachRene"]
[Result "1-0"]
[WhiteElo "2527"]
[BlackElo "1911"]
[TimeControl "180+1"]
[EndTime "14:03:55 PDT"]
[Termination "ElDivis won by resignation"]

1. e4 {[%clk 0:03:00]} 1... Nc6 {[%clk 0:02:56.4]} 2. Nf3 {[%clk 0:02:58.9]}
2... e5 {[%clk 0:02:54.9]} 3. Bc4 {[%clk 0:02:58.4]} 3... g6 {[%clk 0:02:52.1]}
4. O-O {[%clk 0:02:57.5]} 4... Bg7 {[%clk 0:02:52.1]} 5. Re1 {[%clk 0:02:57.4]}
5... Nge7 {[%clk 0:02:52.1]} 6. c3 {[%clk 0:02:57.3]} 6... O-O {[%clk
0:02:51.5]} 7. d4 {[%clk 0:02:57.6]} 7... d6 {[%clk 0:02:50.9]} 8. h3 {[%clk
0:02:54.5]} 8... h6 {[%clk 0:02:44]} 9. Be3 {[%clk 0:02:51.3]} 9... Kh7 {[%clk
0:02:41.9]} 10. Na3 {[%clk 0:02:45.4]} 10... a6 {[%clk 0:02:41.5]} 11. Bf1
{[%clk 0:02:40.8]} 11... Bd7 {[%clk 0:02:31.6]} 12. dxe5 {[%clk 0:02:13.2]}
12... Nxe5 {[%clk 0:02:29.6]} 13. Nxe5 {[%clk 0:02:12.5]} 13... dxe5 {[%clk
0:02:30.5]} 14. Qb3 {[%clk 0:02:08.9]} 14... Bc6 {[%clk 0:02:28.6]} 15. Rad1
{[%clk 0:02:07.5]} 15... Qe8 {[%clk 0:02:27.2]} 16. Qb4 {[%clk 0:02:00.5]} 16...
Nc8 {[%clk 0:02:10.6]} 17. Bc5 {[%clk 0:01:49]} 17... Rg8 {[%clk 0:02:05.9]} 18.
Nc4 {[%clk 0:01:45.2]} 18... Bf8 {[%clk 0:02:01.9]} 19. Bxf8 {[%clk 0:01:43.2]}
19... Rxf8 {[%clk 0:01:58.5]} 20. Nxe5 {[%clk 0:01:42.8]} 20... Bb5 {[%clk
0:01:38.3]} 21. Bxb5 {[%clk 0:01:36]} 21... axb5 {[%clk 0:01:36.5]} 22. Nd7
{[%clk 0:01:35.5]} 22... Rh8 {[%clk 0:01:29.9]} 23. Nf6+ {[%clk 0:01:35.2]} 1-0

[Event "Late-Titled-Tuesday-Blitz-July-09-2024"]
[Site "Chess.com"]
[Date "2024.07.09"]
[Round "1"]
[White "David_George21"]
[Black "XDPS"]
[Result "0-1"]
[WhiteElo "2461"]
[BlackElo "2873"]
[TimeControl "180+1"]
[EndTime "14:04:03 PDT"]
[Termination "XDPS won by resignation"]

1. e4 {[%clk 0:02:59.8]} 1... c5 {[%clk 0:02:58]} 2. Nf3 {[%clk 0:02:59.9]} 2...
e6 {[%clk 0:02:57.4]} 3. d4 {[%clk 0:03:00.5]} 3... cxd4 {[%clk 0:02:58.3]} 4.
Nxd4 {[%clk 0:03:00.9]} 4... a6 {[%clk 0:02:59]} 5. g3 {[%clk 0:02:59.1]} 5...
d5 {[%clk 0:02:53]} 6. Bg2 {[%clk 0:02:57.1]} 6... Nf6 {[%clk 0:02:52.7]} 7. e5
{[%clk 0:02:55.8]} 7... Nfd7 {[%clk 0:02:52.6]} 8. f4 {[%clk 0:02:56.1]} 8...
Nc6 {[%clk 0:02:52.5]} 9. c3 {[%clk 0:02:55]} 9... h5 {[%clk 0:02:43.7]} 10. h4
{[%clk 0:02:51.6]} 10... g6 {[%clk 0:02:43.3]} 11. O-O {[%clk 0:02:50.9]} 11...
Be7 {[%clk 0:02:42.5]} 12. Nd2 {[%clk 0:02:48.2]} 12... Qc7 {[%clk 0:02:41.5]}
13. N2f3 {[%clk 0:02:47.8]} 13... Nc5 {[%clk 0:02:39.4]} 14. Be3 {[%clk
0:02:40.8]} 14... Ne4 {[%clk 0:02:37.8]} 15. Nd2 {[%clk 0:02:40.6]} 15... Nxg3
{[%clk 0:02:37.4]} 16. Rf3 {[%clk 0:02:39.6]} 16... Nxd4 {[%clk 0:02:37.3]} 17.
cxd4 {[%clk 0:02:29.5]} 17... Nf5 {[%clk 0:02:37.5]} 18. Bf2 {[%clk 0:02:29.1]}
18... Nxh4 {[%clk 0:02:36.4]} 19. Bxh4 {[%clk 0:02:29.3]} 19... Bxh4 {[%clk
0:02:36.1]} 20. Qb3 {[%clk 0:02:25.1]} 20... Bd7 {[%clk 0:02:33.8]} 21. Rc3
{[%clk 0:02:23.3]} 21... Bc6 {[%clk 0:02:33.9]} 22. Nf3 {[%clk 0:02:23]} 22...
Be7 {[%clk 0:02:33.1]} 23. Rac1 {[%clk 0:02:23.5]} 23... Kf8 {[%clk 0:02:31.4]}
24. Nd2 {[%clk 0:02:17.2]} 24... Kg7 {[%clk 0:02:29.8]} 25. f5 {[%clk
0:02:17.4]} 25... gxf5 {[%clk 0:02:27.8]} 26. Rg3+ {[%clk 0:02:16.5]} 26... Kf8
{[%clk 0:02:25.1]} 27. Qf3 {[%clk 0:02:14.4]} 27... Qb6 {[%clk 0:02:24.7]} 28.
Nb3 {[%clk 0:02:14.3]} 28... a5 {[%clk 0:02:22.9]} 29. Qf2 {[%clk 0:02:10.8]}
29... Bh4 {[%clk 0:02:21.7]} 30. Rg8+ {[%clk 0:02:08.4]} 30... Rxg8 {[%clk
0:02:21.6]} 31. Qxh4 {[%clk 0:02:09]} 31... a4 {[%clk 0:02:21.8]} 32. Nc5 {[%clk
0:02:05.1]} 32... Qxb2 {[%clk 0:02:21.6]} 33. Nxe6+ {[%clk 0:01:45.3]} 33... Ke8
{[%clk 0:02:19.1]} 34. Nc7+ {[%clk 0:01:14.6]} 34... Kd7 {[%clk 0:02:18.5]} 35.
e6+ {[%clk 0:01:15]} 35... fxe6 {[%clk 0:02:18.5]} 0-1

[Event "Late-Titled-Tuesday-Blitz-July-09-2024"]
[Site "Chess.com"]
[Date "2024.07.09"]
[Round "1"]
[White "Alexander_Khlebovich"]
[Black "JoshWeinstein"]
[Result "0-1"]
[WhiteElo "2804"]
[BlackElo "2457"]
[TimeControl "180+1"]
[EndTime "14:04:07 PDT"]
[Termination "JoshWeinstein won by resignation"]

1. d4 {[%clk 0:02:58.5]} 1... Nf6 {[%clk 0:02:15.5]} 2. c4 {[%clk 0:02:54.5]}
2... g6 {[%clk 0:02:12.7]} 3. Nf3 {[%clk 0:02:54.7]} 3... Bg7 {[%clk 0:02:11.9]}
4. g3 {[%clk 0:02:55.3]} 4... O-O {[%clk 0:02:11.7]} 5. Bg2 {[%clk 0:02:56]}
5... d5 {[%clk 0:02:12.5]} 6. cxd5 {[%clk 0:02:55.6]} 6... Nxd5 {[%clk
0:02:13.4]} 7. O-O {[%clk 0:02:56.1]} 7... c5 {[%clk 0:02:12.7]} 8. e4 {[%clk
0:02:55.8]} 8... Nf6 {[%clk 0:02:11.7]} 9. e5 {[%clk 0:02:55.5]} 9... Nd5 {[%clk
0:02:05.7]} 10. dxc5 {[%clk 0:02:55.5]} 10... Nc6 {[%clk 0:02:03.2]} 11. Re1
{[%clk 0:02:50.2]} 11... e6 {[%clk 0:01:57.5]} 12. a3 {[%clk 0:02:45.7]} 12...
a5 {[%clk 0:01:57.1]} 13. Nbd2 {[%clk 0:02:39.3]} 13... a4 {[%clk 0:01:48.8]}
14. Nc4 {[%clk 0:02:37.4]} 14... Qc7 {[%clk 0:01:38]} 15. Nd6 {[%clk 0:02:30.7]}
15... Bd7 {[%clk 0:01:37.9]} 16. Bd2 {[%clk 0:02:22.4]} 16... Na5 {[%clk
0:01:35.8]} 17. Qxa4 {[%clk 0:02:15.3]} 17... Bxa4 {[%clk 0:01:34.9]} 18. Bxa5
{[%clk 0:02:13.2]} 18... Rxa5 {[%clk 0:01:34.5]} 19. b4 {[%clk 0:02:13.7]} 19...
Raa8 {[%clk 0:01:33.5]} 20. Nd4 {[%clk 0:02:13.7]} 20... b6 {[%clk 0:01:27.2]}
21. Rac1 {[%clk 0:02:10.5]} 21... bxc5 {[%clk 0:01:26.5]} 22. Rxc5 {[%clk
0:02:11.4]} 22... Qd7 {[%clk 0:01:24.2]} 23. Rec1 {[%clk 0:02:02.8]} 23... Bxe5
{[%clk 0:01:22.4]} 24. N6b5 {[%clk 0:01:59.3]} 24... Bxb5 {[%clk 0:01:18.1]} 25.
Nxb5 {[%clk 0:02:00.1]} 25... Rfc8 {[%clk 0:01:13.9]} 0-1

[Event "Late-Titled-Tuesday-Blitz-July-09-2024"]
[Site "Chess.com"]
[Date "2024.07.09"]
[Round "1"]
[White "DucksParadise"]
[Black "ZakinIlay2306"]
[Result "0-1"]
[WhiteElo "2611"]
[BlackElo "2317"]
[TimeControl "180+1"]
[EndTime "14:04:07 PDT"]
[Termination "ZakinIlay2306 won by resignation"]

1. Nf3 {[%clk 0:02:59.6]} 1... c5 {[%clk 0:02:58.8]} 2. g3 {[%clk 0:02:54.5]}
2... Nf6 {[%clk 0:02:58]} 3. Bg2 {[%clk 0:02:55.1]} 3... g6 {[%clk 0:02:58.5]}
4. O-O {[%clk 0:02:55.7]} 4... Bg7 {[%clk 0:02:59.1]} 5. c3 {[%clk 0:02:53.2]}
5... O-O {[%clk 0:02:57.9]} 6. d4 {[%clk 0:02:53.4]} 6... d5 {[%clk 0:02:56]} 7.
dxc5 {[%clk 0:02:48.5]} 7... Nc6 {[%clk 0:02:54.8]} 8. b4 {[%clk 0:02:43.8]}
8... Ne4 {[%clk 0:02:53.8]} 9. Nd4 {[%clk 0:02:20.9]} 9... Nxc3 {[%clk
0:02:44.6]} 10. Nxc3 {[%clk 0:02:21.8]} 10... Bxd4 {[%clk 0:02:44.1]} 11. Bb2
{[%clk 0:02:20.8]} 11... Bg7 {[%clk 0:02:32.1]} 12. a3 {[%clk 0:02:12.9]} 12...
e6 {[%clk 0:02:30.1]} 13. Qd2 {[%clk 0:02:10]} 13... Ne5 {[%clk 0:02:28.7]} 14.
Qc2 {[%clk 0:02:02.4]} 14... Nc4 {[%clk 0:02:27.7]} 15. Bc1 {[%clk 0:02:01.6]}
15... Qf6 {[%clk 0:02:26.2]} 16. Nb5 {[%clk 0:01:29.3]} 16... Qxa1 {[%clk
0:02:19.5]} 17. Bf4 {[%clk 0:01:26.2]} 17... Qb2 {[%clk 0:02:04.9]} 18. Qxb2
{[%clk 0:01:14.8]} 18... Bxb2 {[%clk 0:01:58.7]} 19. Nc7 {[%clk 0:01:15.7]}
19... Bd7 {[%clk 0:01:50.7]} 20. Nxa8 {[%clk 0:01:15.1]} 20... Rxa8 {[%clk
0:01:51.6]} 21. e4 {[%clk 0:01:13.3]} 21... d4 {[%clk 0:01:46.8]} 22. e5 {[%clk
0:01:13.4]} 22... Bc6 {[%clk 0:01:43.3]} 23. Rd1 {[%clk 0:01:12.8]} 0-1

[Event "Late-Titled-Tuesday-Blitz-July-09-2024"]
[Site "Chess.com"]
[Date "2024.07.09"]
[Round "1"]
[White "Navyblue1"]
[Black "NovoselovRoman"]
[Result "0-1"]
[WhiteElo "2117"]
[BlackElo "2562"]
[TimeControl "180+1"]
[EndTime "14:04:21 PDT"]
[Termination "NovoselovRoman won by resignation"]

1. d4 {[%clk 0:02:51.5]} 1... d5 {[%clk 0:02:59.6]} 2. c4 {[%clk 0:02:51]} 2...
e6 {[%clk 0:03:00.1]} 3. Nc3 {[%clk 0:02:46]} 3... c5 {[%clk 0:03:00.2]} 4. cxd5
{[%clk 0:02:42.5]} 4... cxd4 {[%clk 0:03:00.2]} 5. Qxd4 {[%clk 0:02:41.6]} 5...
Nc6 {[%clk 0:03:00.7]} 6. Qd1 {[%clk 0:02:34.8]} 6... exd5 {[%clk 0:03:01.1]} 7.
Qxd5 {[%clk 0:02:32.4]} 7... Bd6 {[%clk 0:03:00.5]} 8. Qd1 {[%clk 0:02:21.5]}
8... Nf6 {[%clk 0:02:50]} 9. Nf3 {[%clk 0:02:17.9]} 9... O-O {[%clk 0:02:50.5]}
10. e3 {[%clk 0:02:11.1]} 10... Qe7 {[%clk 0:02:50.4]} 11. Be2 {[%clk
0:02:08.2]} 11... Rd8 {[%clk 0:02:51]} 12. Qa4 {[%clk 0:02:04]} 12... Nb4 {[%clk
0:02:24]} 13. O-O {[%clk 0:01:35.2]} 13... a6 {[%clk 0:02:22.6]} 14. a3 {[%clk
0:01:26.6]} 14... Bd7 {[%clk 0:02:21.6]} 15. Qb3 {[%clk 0:01:24.3]} 15... Be6
{[%clk 0:02:21.5]} 16. Qa4 {[%clk 0:01:22.2]} 16... b5 {[%clk 0:02:21.5]} 17.
Qa5 {[%clk 0:01:20.2]} 17... Nc2 {[%clk 0:02:19.8]} 18. Rb1 {[%clk 0:01:15.8]}
18... Bc7 {[%clk 0:02:19.7]} 19. Nd5 {[%clk 0:01:07.5]} 19... Bxd5 {[%clk
0:02:10.7]} 20. Qd2 {[%clk 0:01:07.1]} 20... Be4 {[%clk 0:02:10.4]} 21. Qc3
{[%clk 0:01:05.1]} 21... Rac8 {[%clk 0:02:09.4]} 22. Qb3 {[%clk 0:00:58]} 22...
Bd5 {[%clk 0:01:47.3]} 0-1

[Event "Late-Titled-Tuesday-Blitz-July-09-2024"]
[Site "Chess.com"]
[Date "2024.07.09"]
[Round "1"]
[White "mslemongirl"]
[Black "djano"]
[Result "0-1"]
[WhiteElo "2242"]
[BlackElo "2597"]
[TimeControl "180+1"]
[EndTime "14:04:25 PDT"]
[Termination "djano won by checkmate"]

1. e4 {[%clk 0:03:00.9]} 1... c5 {[%clk 0:02:59.2]} 2. Nf3 {[%clk 0:03:00.9]}
2... g6 {[%clk 0:02:59.8]} 3. c4 {[%clk 0:02:59.1]} 3... Bg7 {[%clk 0:02:59.2]}
4. Nc3 {[%clk 0:02:59.7]} 4... Nc6 {[%clk 0:02:58.9]} 5. d3 {[%clk 0:02:59.6]}
5... d6 {[%clk 0:02:58.3]} 6. g3 {[%clk 0:02:58.1]} 6... Nf6 {[%clk 0:02:55]} 7.
Bg2 {[%clk 0:02:58.5]} 7... Bg4 {[%clk 0:02:53.5]} 8. h3 {[%clk 0:02:55.4]} 8...
Bxf3 {[%clk 0:02:53.5]} 9. Bxf3 {[%clk 0:02:56.3]} 9... Nd7 {[%clk 0:02:53.9]}
10. Bg2 {[%clk 0:02:53.3]} 10... Nf8 {[%clk 0:02:54.1]} 11. O-O {[%clk
0:02:52.5]} 11... Ne6 {[%clk 0:02:54.5]} 12. f4 {[%clk 0:02:43.5]} 12... Ned4
{[%clk 0:02:54.7]} 13. f5 {[%clk 0:02:40.9]} 13... e6 {[%clk 0:02:52.4]} 14.
fxe6 {[%clk 0:02:37.3]} 14... fxe6 {[%clk 0:02:52.4]} 15. Qg4 {[%clk 0:02:33.2]}
15... Ne5 {[%clk 0:02:47.7]} 16. Qd1 {[%clk 0:02:26.1]} 16... Qe7 {[%clk
0:02:47.7]} 17. Ne2 {[%clk 0:02:14.8]} 17... Nec6 {[%clk 0:02:43.7]} 18. Nxd4
{[%clk 0:02:06.7]} 18... Bxd4+ {[%clk 0:02:42.9]} 19. Kh2 {[%clk 0:02:05.1]}
19... O-O-O {[%clk 0:02:43.4]} 20. Qg4 {[%clk 0:01:59]} 20... Ne5 {[%clk
0:02:37.6]} 21. Qg5 {[%clk 0:01:55.4]} 21... Qg7 {[%clk 0:02:26.3]} 22. Qd2
{[%clk 0:01:36.6]} 22... h5 {[%clk 0:02:26.2]} 23. Rb1 {[%clk 0:01:36.3]} 23...
Rdf8 {[%clk 0:01:57.5]} 24. Rxf8+ {[%clk 0:01:32.5]} 24... Qxf8 {[%clk
0:01:58.2]} 25. b4 {[%clk 0:01:28.8]} 25... Ng4+ {[%clk 0:01:37]} 26. Kh1 {[%clk
0:01:28.9]} 26... Qf2 {[%clk 0:01:24.2]} 27. bxc5 {[%clk 0:01:20.3]} 27... Qg1#
{[%clk 0:01:21.9]} 0-1

[Event "Late-Titled-Tuesday-Blitz-July-09-2024"]
[Site "Chess.com"]
[Date "2024.07.09"]
[Round "1"]
[White "Vladimir_Zakhartsov"]
[Black "Proteuo"]
[Result "1-0"]
[WhiteElo "2893"]
[BlackElo "2473"]
[TimeControl "180+1"]
[EndTime "14:04:27 PDT"]
[Termination "Vladimir_Zakhartsov won by resignation"]

1. d4 {[%clk 0:03:00.9]} 1... Nf6 {[%clk 0:02:57.2]} 2. c4 {[%clk 0:03:00.9]}
2... e6 {[%clk 0:02:44.5]} 3. Nc3 {[%clk 0:02:59.9]} 3... d5 {[%clk 0:02:37.3]}
4. Nf3 {[%clk 0:02:58.4]} 4... Be7 {[%clk 0:02:31.1]} 5. Bg5 {[%clk 0:02:57.4]}
5... O-O {[%clk 0:02:23.8]} 6. e3 {[%clk 0:02:57.6]} 6... Nbd7 {[%clk
0:02:21.5]} 7. Rc1 {[%clk 0:02:56.3]} 7... c6 {[%clk 0:02:20.5]} 8. Be2 {[%clk
0:02:55.1]} 8... a6 {[%clk 0:02:19.7]} 9. O-O {[%clk 0:02:52.5]} 9... dxc4
{[%clk 0:02:19.5]} 10. Bxc4 {[%clk 0:02:53.4]} 10... b5 {[%clk 0:02:19.5]} 11.
Bd3 {[%clk 0:02:54.1]} 11... Bb7 {[%clk 0:02:20]} 12. a3 {[%clk 0:02:48.7]}
12... c5 {[%clk 0:02:19.5]} 13. Qe2 {[%clk 0:02:48.5]} 13... c4 {[%clk
0:02:17.1]} 14. Bb1 {[%clk 0:02:48.2]} 14... Nd5 {[%clk 0:02:13]} 15. Qc2 {[%clk
0:02:40.1]} 15... f5 {[%clk 0:02:08.2]} 16. Bxe7 {[%clk 0:02:37.1]} 16... Qxe7
{[%clk 0:02:08.1]} 17. Qe2 {[%clk 0:02:34.9]} 17... Nxc3 {[%clk 0:02:03.5]} 18.
bxc3 {[%clk 0:02:33.8]} 18... Nf6 {[%clk 0:02:03.5]} 19. a4 {[%clk 0:02:31.4]}
19... Ne4 {[%clk 0:02:00.5]} 20. Ne5 {[%clk 0:02:29.9]} 20... Qa3 {[%clk
0:01:49.2]} 21. Bxe4 {[%clk 0:02:22.9]} 21... Bxe4 {[%clk 0:01:45.7]} 22. axb5
{[%clk 0:02:23]} 22... axb5 {[%clk 0:01:44.6]} 23. f3 {[%clk 0:02:21.3]} 23...
Bb7 {[%clk 0:01:35.1]} 24. Qd2 {[%clk 0:02:19.4]} 24... Qa5 {[%clk 0:01:25.4]}
25. Rb1 {[%clk 0:02:17.6]} 25... Bd5 {[%clk 0:01:16.2]} 26. Rb4 {[%clk
0:02:17.5]} 26... Ra7 {[%clk 0:01:12.6]} 27. Rfb1 {[%clk 0:02:15.7]} 27... Rb7
{[%clk 0:01:12.1]} 28. Qc2 {[%clk 0:02:09.1]} 28... Rfb8 {[%clk 0:01:04.7]} 29.
e4 {[%clk 0:02:07.5]} 1-0

[Event "Late-Titled-Tuesday-Blitz-July-09-2024"]
[Site "Chess.com"]
[Date "2024.07.09"]
[Round "1"]
[White "karinachess1"]
[Black "TC2304"]
[Result "1-0"]
[WhiteElo "2664"]
[BlackElo "2337"]
[TimeControl "180+1"]
[EndTime "14:04:36 PDT"]
[Termination "karinachess1 won by resignation"]

1. d4 {[%clk 0:03:00.9]} 1... Nf6 {[%clk 0:02:58.5]} 2. c4 {[%clk 0:03:01]} 2...
e6 {[%clk 0:02:59]} 3. Nc3 {[%clk 0:03:00.7]} 3... d5 {[%clk 0:02:59.2]} 4. cxd5
{[%clk 0:03:00.1]} 4... exd5 {[%clk 0:03:00.1]} 5. Bg5 {[%clk 0:02:59.9]} 5...
c6 {[%clk 0:02:58.9]} 6. e3 {[%clk 0:03:00.1]} 6... Be7 {[%clk 0:02:57.5]} 7.
Bd3 {[%clk 0:03:00.3]} 7... O-O {[%clk 0:02:57.3]} 8. Qc2 {[%clk 0:02:54.5]}
8... Nbd7 {[%clk 0:02:57.1]} 9. Nf3 {[%clk 0:02:53.9]} 9... Re8 {[%clk
0:02:56.6]} 10. O-O {[%clk 0:02:52.7]} 10... Nf8 {[%clk 0:02:56.3]} 11. Ne5
{[%clk 0:02:50.3]} 11... a5 {[%clk 0:02:44.4]} 12. f4 {[%clk 0:02:49.3]} 12...
h6 {[%clk 0:02:11.3]} 13. Bh4 {[%clk 0:02:48.5]} 13... Ng4 {[%clk 0:02:11.1]}
14. Bf2 {[%clk 0:02:35.7]} 14... Nxf2 {[%clk 0:01:57.3]} 15. Qxf2 {[%clk
0:02:36.6]} 15... Nd7 {[%clk 0:01:47.9]} 16. Rae1 {[%clk 0:02:29.7]} 16... Nxe5
{[%clk 0:01:41.4]} 17. fxe5 {[%clk 0:02:29]} 17... Be6 {[%clk 0:01:42]} 18. Ne2
{[%clk 0:02:18.8]} 18... a4 {[%clk 0:01:18.6]} 19. Nf4 {[%clk 0:02:17.7]} 19...
Rf8 {[%clk 0:01:12.6]} 20. Bb1 {[%clk 0:02:16.7]} 20... Re8 {[%clk 0:00:08.8]}
21. Nxe6 {[%clk 0:02:14.4]} 21... fxe6 {[%clk 0:00:09]} 22. Qc2 {[%clk
0:02:15.1]} 1-0